Cogmind - Beta 14 @@@ ROGUE MODE // 2025.03.04 @ 23:01:19 Player: Skergy Result: Destroyed by Autobeam Turret with Autobeam Performance ------------- Evolutions (0) 0 Regions Visited (2) 400 Robots Destroyed (27) 135 Value Destroyed (694) 694 Prototype IDs (3) 60 Alien Tech Used (0) 0 Bonus (-125) -125 TOTAL SCORE: 1164 Bonus ------- Follower Combat Kills 155 Friendly Fire -280 Cogmind --------- Core Integrity 0/250 Matter 289/300 Energy 60/100 System Corruption 6% Temperature Cool (6) Movement Walking (130) Location -10/Subcaves Parts ------- > --- POWER (1) -------- Subdweller Power Source > --- PROPULSION (2) --- Aluminum Leg Makeshift Leg > --- UTILITY (2) ------ Signal Interpreter > --- WEAPON (2) ------- Assault Rifle > --- INVENTORY (5) ---- Spiked Treads Aluminum Leg Large Storage Unit Scrap Shield Peak State ------------ > --- POWER ------------ Subdweller Power Source > --- PROPULSION ------- Aluminum Leg Makeshift Leg > --- UTILITY ---------- Signal Interpreter V3-11A's Pendant > --- WEAPON ----------- Grenade Launcher > --- INVENTORY -------- Aluminum Leg Large Storage Unit Scrap Shield [Rating: 12] Favorites ----------- Power Ion Engine Engine Ion Engine Propulsion Light Treads Treads Light Treads Leg Makeshift Leg Wheel Compact Wheel Utility Signal Interpreter Device V3-11A's Pendant Storage Large Storage Unit Processor Signal Interpreter Protection Scrap Shield Weapon EM Pulse Gun Energy Gun EM Pulse Gun Ballistic Gun Light Assault Rifle Launcher Grenade Launcher Build | -11 -10 -10 ------- Run | Yrd Mat Sub Slots Evolved . | . . . Power . | . . . Propulsion . | . . . Utility . | . . . Weapon . | . . . Parts Attached 29 | 7 5 17 Power 5 | 1 . 4 Engine 5 | 1 . 4 Core . | . . . Reactor . | . . . Propulsion 8 | 3 2 3 Treads 4 | 1 2 1 Leg 2 | . . 2 Wheel 2 | 2 . . Hover . | . . . Flight . | . . . Utility 8 | 1 3 4 Device 2 | . 1 1 Storage 2 | 1 1 . Processor 3 | . 1 2 Hackware . | . . . Protection 1 | . . 1 Artifact . | . . . Weapon 8 | 2 . 6 Energy Gun 3 | 1 . 2 Energy Cannon . | . . . Ballistic Gun 2 | 1 . 1 Ballistic Cannon . | . . . Launcher 3 | . . 3 Special Weapon . | . . . Impact Weapon . | . . . Slashing Weapon . | . . . Piercing Weapon . | . . . Special Melee Weapon . | . . . Unidentified Prototypes 1 | . . 1 Parts Lost 8 | . . 8 Power 2 | . . 2 Propulsion 1 | . . 1 Utility 2 | . . 2 Weapon 3 | . . 3 Highest Loss Streak 3 | . . 3 To Critical Strikes . | . . . Average Slot Usage (%) 82 | . 97 74 Engine 12 | . 14 11 Treads 7 | . 11 5 Leg 14 | . . 22 Wheel 5 | . 16 . Device 7 | . 3 10 Storage 6 | . 14 2 Processor 10 | . 8 11 Energy Gun 7 | . 14 4 Ballistic Gun 4 | . 14 . Launcher 2 | . . 3 Peak Build Rating 12 | 6 8 12 Average Rating 9 | 4 7 10 On Entrance 4 | . 6 8 Naked Turns . | . . . Heaviest Build 30 | 13 29 30 Greatest Support 40 | 32 40 40 Greatest Overweight (x) . | . . . Average Overweight (x) . | . . . Largest Inventory Capacity 15 | 8 15 15 Average Capacity 9 | 6 14 6 Most Carried 15 | 6 15 15 Average Carried 8 | 4 13 6 Final Capacity 15 | 8 15 5 Final Carried 15 | 6 15 5 Class Distribution -------------------- 100% | Mutant Dominant Class ---------------- Mutant | -10/Materials Mutant | -10/Subcaves Resources | -11 -10 -10 ----------- Run | Yrd Mat Sub Matter Collected 1024 | 232 276 516 Remotely . | . . . Salvage Created 792 | . 563 229 Parts 55 | . 36 19 Haulers Intercepted 2 | . 2 . Recyclers Shooed . | . . . Parts Field Recycled . | . . . Retrieved Matter . | . . . Parts Self-Destructed 21 | . . 21 Prevented . | . . . Kills | -11 -10 -10 ------- Run | Yrd Mat Sub Combat Hostiles Destroyed 18 | . 9 9 Guns 4 | . 4 . AOE 14 | . 5 9 Classes Destroyed 8 | . 6 2 Hauler 2 | . 2 . Recycler 1 | . 1 . Operator 1 | . 1 . Watcher 3 | . 3 . Swarmer 3 | . 3 . Grunt 6 | . 6 . Artisan 1 | . . 1 Subdweller 11 | . . 11 Best Kill Streak 6 | . 6 3 Combat Bots Only 3 | . 3 3 Max Kills in Single Turn 2 | . 2 2 Gunslinging . | . . . Exploded 2 | . 2 2 Melee . | . . . Uniques/NPCs Destroyed . | . . . Combat | -11 -10 -10 -------- Run | Yrd Mat Sub Hostile Shots Fired 75 | . 28 47 Missed 28 | . 11 17 Damage Taken 1415 | . 175 1240 Core 253 | . 33 220 Absorbed by Shields . | . . . Core Remaining (%) 100 | 100 . . Volleys Fired 68 | . 38 30 Largest 2 | . 2 2 Hottest 70 | . 60 70 Shots Fired 123 | . 76 47 Gun 95 | . 76 19 Cannon . | . . . Launcher 28 | . . 28 Special . | . . . Kinetic 41 | . 38 3 Thermal 3 | . . 3 Explosive 28 | . . 28 Electromagnetic 51 | . 38 13 Robot Hit Streak 7 | . 7 7 Robot Miss Streak 4 | . 3 4 Penetration Max . | . . . Secondary Targets . | . . . Shots Hit Robots 68 | . 47 21 Core Hits 52 | . 29 23 Critical Kills . | . . . Critical Parts Destroyed . | . . . Critical Strikes . | . . . Melee Attacks . | . . . Impact . | . . . Slashing . | . . . Piercing . | . . . Sneak Attacks . | . . . Combat Hostiles . | . . . Follow-up Attacks . | . . . Damage Inflicted 1909 | . 706 1203 Guns 600 | . 497 103 Cannons . | . . . Explosions 1309 | . 209 1100 Melee . | . . . Ramming . | . . . Kinetic 211 | . 186 25 Thermal 209 | . 209 . Explosive 1100 | . . 1100 Electromagnetic 389 | . 311 78 Impact . | . . . Slashing . | . . . Piercing . | . . . Highest Corruption 6 | . . 6 Average Corruption 6 | . . 6 Corruption Purged . | . . . Corruption Blocked . | . . . Effects 61 | . . 61 Message Errors 17 | . . 17 Matter Fused 15 | . . 15 Heat Flow Errors 10 | . . 10 Energy Discharges 8 | . . 8 Data Loss (minor) 6 | . . 6 Data Loss (major) 2 | . . 2 Misfires 2 | . . 2 Alerts 1 | . . 1 Overload Shots . | . . . Overflow Damage 7 | . . 7 Projectiles . | . . . Explosions 7 | . . 7 Melee . | . . . Knockbacks . | . . . Impact . | . . . Kinetic . | . . . Secondary . | . . . Self-Inflicted Damage 279 | . . 279 Shots 12 | . . 12 Rammed . | . . . Targets Rammed . | . . . Kicked . | . . . Crushed . | . . . Highest Temperature 247 | . 58 247 Average Temperature 48 | . 21 100 Received Heat Transfer 189 | . 69 120 Siege Activations . | . . . Robots Corrupted . | . . . Combat Hostiles . | . . . Parts Fried 1 | . 1 . Impact Corruptions . | . . . Robots Melted . | . . . Combat Hostiles . | . . . Parts Melted . | . . . Heat Transferred 150 | . 150 . Parts Sabotaged . | . . . Parts Stolen . | . . . Parts Stripped . | . . . Power Chain Reactions 4 | . 4 . Alert | -11 -10 -10 ------- Run | Yrd Mat Sub Peak Influence 278 | . 278 . Initial . | . . . Average 93 | . 97 . Maximum Alert Level 1 | . 1 . Low Security (%) 83 | 100 82 . Level 1 16 | . 17 . Level 2 . | . . . Level 3 . | . . . Level 4 . | . . . Level 5 . | . . . High Security . | . . . Max Security . | . . . Squads Dispatched 1 | . 1 . Investigation . | . . . Extermination . | . . . Reinforcement 1 | . 1 . Assault . | . . . Garrison . | . . . Intercept . | . . . Searches Triggered . | . . . Construction Impeded . | . . . Haulers Reinforced . | . . . Active Scanning Responses . | . . . Cargo Convoy Interrupts . | . . . Stealth | -11 -10 -10 --------- Run | Yrd Mat Sub Distress Signals 1 | . 1 . Communications Jammed . | . . . Distress Signals . | . . . Times Spotted 40 | . 15 25 Peak Tracking Total 5 | . 3 5 Tactical Retreats 2 | . . 2 Traps | -11 -10 -10 ------- Run | Yrd Mat Sub Traps Triggered 1 | . . 1 Indirectly . | . . . Trap Hack Attempts . | . . . Triggered . | . . . Disarmed . | . . . Reprogrammed . | . . . Reused . | . . . Traps Extracted . | . . . Installed . | . . . Triggered . | . . . Machines | -11 -10 -10 ---------- Run | Yrd Mat Sub Machines Disabled 5 | . 1 4 Max in Single Turn 3 | . 1 3 Machines Repaired . | . . . Machines Dismantled . | . . . Machines Sabotaged . | . . . Overloaded Fab Kills . | . . . Hacking | -11 -10 -10 --------- Run | Yrd Mat Sub Machines Accessed 9 | . 8 1 Terminals 7 | . 7 . Fabricators . | . . . Repair Stations . | . . . Recycling Units 1 | . 1 . Scanalyzers . | . . . Garrison Access . | . . . Total Hacks 31 | . 27 4 Successful 20 | . 16 4 Failed 11 | . 11 . Catastrophic . | . . . Database Lockouts . | . . . Manual 19 | . 19 . Terminals 25 | . 25 . Fabricators . | . . . Repair Stations . | . . . Recycling Units 2 | . 2 . Scanalyzers . | . . . Garrison Access . | . . . Terminal Hacks 7 | . 3 4 Record 4 | . . 4 Robot Analysis 1 | . 1 . Prototype ID Bank 1 | . 1 . Hauler Manifests 1 | . 1 . Fabricator Hacks . | . . . Repair Station Hacks . | . . . Recycling Unit Hacks . | . . . Scanalyzer . | . . . Garrison Access Hacks . | . . . Unauthorized Hacks 13 | . 13 . Terminals 12 | . 12 . Track 3 | . 3 . Assimilate 2 | . 2 . Botnet 6 | . 6 . Operators 1 | . 1 . Fabricators . | . . . Repair Stations . | . . . Recycling Units 1 | . 1 . Reject 1 | . 1 . Scanalyzers . | . . . Garrison Access . | . . . Data Cores Recovered 1 | . 1 . Used . | . . . Hacking Detections 7 | . 7 . Full Trace Events 1 | . 1 . Feedback Events . | . . . Feedback Blocked . | . . . Robot Schematics Acquired . | . . . Robots Built . | . . . Authchips . | . . . Time . | . . . Total Robot Build Rating . | . . . Part Schematics Acquired . | . . . Parts Built . | . . . Authchips . | . . . Time . | . . . Total Part Build Rating . | . . . Parts Repaired . | . . . Time . | . . . Parts Recycled . | . . . Recycled Matter . | . . . Retrieved Matter . | . . . Retrieved Components . | . . . Parts Scanalyzed . | . . . Part Schematics Acquired . | . . . Parts Damaged . | . . . Bothacking | -11 -10 -10 ------------ Run | Yrd Mat Sub Used RIF Installer . | . . . Robots Hacked . | . . . Non-combat . | . . . Combat . | . . . Robot Hacks Applied . | . . . Relay Couplers Released . | . . . Fabnet Peak Effective % . | . . . Robots Rewired . | . . . Allies Hacked . | . . . Hacks Repelled . | . . . Allies | -11 -10 -10 -------- Run | Yrd Mat Sub Total Allies 8 | . . 8 Largest Group 4 | . . 4 Highest-Rated Group 76 | . . 76 Highest-Rated Ally 19 | . . 19 Total Orders . | . . . Ally Attacks 44 | . . 44 Total Damage 408 | . . 408 Kills 10 | . . 10 Allies Corrupted . | . . . Allies Melted . | . . . Intel | -11 -10 -10 ------- Run | Yrd Mat Sub Robot Analysis Total 1 | . 1 . Derelict Logs Recovered 1 | . . 1 Drone Launches . | . . . Drone Recoveries . | . . . Exploration | -11 -10 -10 ------------- Run | Yrd Mat Sub Turns Passed 3525 | 60 1177 2288 Spaces Moved 2408 | 47 857 1504 Core 7 | 7 . . Treads 509 | . 268 241 Legs 1263 | . . 1263 Wheels 629 | 40 589 . Hover . | . . . Flight . | . . . Fastest Speed 50 | 50 100 130 Average Speed 128 | 92 118 134 Slowest Speed 160 | 100 160 160 Overloaded Moves . | . . . Propulsion Burnouts . | . . . Robots Hopped . | . . . Cave-ins Triggered 2 | . . 2 Exploration Rate (%) 62 | 3 99 84 Regions Visited 2 Branch Regions 1 Pre-discovered Areas 1 | . . 1 Known Exits Taken 1 | . 1 . Unknown Exits Taken 1 | 1 . . Scrap Searched 3 | . . 3 Spaces Dug 54 | . . 54 Terrain Destroyed 177 | . 3 174 Melee . | . . . Projectile . | . . . AOE 177 | . 3 174 Terrain Rammed . | . . . Walls Destroyed . | . . . Machines Disabled . | . . . Actions | -11 -10 -10 --------- Run | Yrd Mat Sub Total 2732 | 59 951 1722 Wait 183 | . 34 149 Move 2406 | 46 856 1504 Hop . | . . . Pick Up 24 | 6 12 6 Fast Attach 12 | 6 2 4 Attach 11 | . 3 8 Detach 4 | . 2 2 Swap 6 | 1 . 5 Drop 14 | . 4 10 Fire 68 | . 38 30 Melee . | . . . Ram . | . . . Kick . | . . . Crush . | . . . Escape Stasis . | . . . Rewire . | . . . Trap . | . . . Miscellaneous 4 | . . 4 Route ------- -11/Scrapyard -10/Materials (discovered 5 exits: *Mat x3 / *Min / *Sub) -10/Subcaves (discovered 3 exits: *Mat x2 / Rec) History --------- Turn | Location | Event 7 | -11/Scrapyard | Discovered new exit (range 15) 61 | -11/Scrapyard | Entered Materials 144 | -10/Materials | Discovered new exit (range 8) 318 | -10/Materials | Build established: Mutant 401 | -10/Materials | Discovered new exit (range 16) 463 | -10/Materials | Discovered new exit (range 12) 535 | -10/Materials | Identified exit to Materials 612 | -10/Materials | Identified exit to Mines 731 | -10/Materials | Discovered exit to Materials (range 11) 1224 | -10/Materials | Discovered new exit (range 10) 1236 | -10/Materials | Identified exit to Subcaves 1238 | -10/Materials | Entered Subcaves 1337 | -10/Subcaves | Crushed by falling debris 1337 | -10/Subcaves | Core integrity fell below 50% 1341 | -10/Subcaves | Ambushed by Subdweller buried in earth 1351 | -10/Subcaves | Ambushed by Subdweller buried in earth 1526 | -10/Subcaves | Discovered new exit (range 13) 1547 | -10/Subcaves | Identified exit to Materials 1650 | -10/Subcaves | Disturbed a concealed Subdweller 1652 | -10/Subcaves | Ambushed by Subdweller buried in earth 1687 | -10/Subcaves | Lost 3 parts (1p1n1w) 1838 | -10/Subcaves | Visited triangular shrine 1846 | -10/Subcaves | Found Prototype Device 1846 | -10/Subcaves | Identified V3-11A's Pendant 1851 | -10/Subcaves | Befriended Subdweller 1862 | -10/Subcaves | Core integrity fell below 20% 1907 | -10/Subcaves | Ambushed by Subdweller buried in earth 1911 | -10/Subcaves | Befriended Subdweller 1935 | -10/Subcaves | Crushed by falling debris 1951 | -10/Subcaves | Befriended Subdweller 1951 | -10/Subcaves | Befriended Subdweller 2161 | -10/Subcaves | Befriended Subdweller 2461 | -10/Subcaves | Befriended Subdweller 2485 | -10/Subcaves | Discovered exit to Materials (range 7) 2496 | -10/Subcaves | Befriended Subdweller 2555 | -10/Subcaves | Shifting Twisted Machinery released Sub. Power Source 2556 | -10/Subcaves | Shifting Twisted Machinery released Sub. Monowheel 2652 | -10/Subcaves | Learned 2 Materials zone layouts 2801 | -10/Subcaves | Visited Clippyterm 2805 | -10/Subcaves | Identified exit to Recycling 2844 | -10/Subcaves | Disturbed a concealed Subdweller 2846 | -10/Subcaves | Befriended Subdweller 3003 | -10/Subcaves | Shifting Twisted Machinery released Sub. Optics 3007 | -10/Subcaves | Shifting Twisted Machinery released Sub. Laser 3100 | -10/Subcaves | Learned location of Zion (-7) 3100 | -10/Subcaves | Met a Zionite searching for "candidates" 3116 | -10/Subcaves | A swath of the cavern ceiling suddenly collapsed 3340 | -10/Subcaves | Shifting Twisted Machinery released Spk. Treads 3526 | -10/Subcaves | Destroyed by Autobeam Turret with Autobeam Last Messages --------------- 03323_ Acquired 4 matter. 03335_ 3DYRK|<4Y>7SD1LSPBO%U Spk. Treads falls loose from the Twisted Machinery. 03352_ Acquired Spk. Treads. 03360_ System corrupted: Matter fused (-7). 03394_ System corrupted: Heat flow error (+121). 03438_ DVNLBTAPHYQWIJ=SRKU U2JL=RT 03451_ Sub. Power Source shoots sparks and powers down. 03451_ Acquired 7 matter. 03484_ System corrupted: Component data lost. 03484_ FH-0W1(R) destroyed. 03494_ 2G-YE2(R) destroyed. 03498_ S-10 Pest destroyed. 03500_ System corrupted: Energy discharge (-32). 03502_ S-10 Pest destroyed. 03508_ Lgt. Ion Engine fries itself beyond repair. 03519_ TX-Y17(R) destroyed. 03521_ Acquired Assault Rifle. 03524_ V3-11A's Pendant destroyed. 03526_ System corrupted: Energy discharge (-40). Map ----- +----------------------------------------------------+ | ?# #?????????????????????????????## | | ## ## ##?????????????????????????????# | | # ### #??????????????????????????????##### | | # # ##??????????????????????????????????## | | # #???????????????????????????????????##### | | # ##???????????????????????????????????????? | | # # #???????????????????????????????????????? | | ##### #???????????????????????????????????????? | | ????# ##???????????????????????????????????????? | | ????# #???????????????????????????????????????? | | ????# ##???????????????????????????????????????? | | ##### ##???????????????????????????????????????? | | # # #???????????????????????????????????????? | | ## ##???????????????????????????????????????? | | # #?????????????###????????????????????????? | | # #####?????????????#%#######??????????????????? | | ##% ######???????????## ???????????????????? | | ?# % ####????????# ?????????????????????? | | ## * #????????? #??????????????????????? | | ## ########## ##?????????????????????? | | # ## ## % # #?????????????????????? | | ## #?????????????????????? | | ##????????????????????? | | # ##???????????????????? | | " ### #???????????????????? | | ! #?# *% !@ #???????????????????? | | #?# ] [%% #???????????????????? | | "" #?# ## #%! ##???????????????????? | | ##" ## ### ## ;#???????????????????? | | ?# ### ##### ## % ##???????????????????? | | ?## # # ##### ## ## ;#???????????????????? | | ??# %& ## ### #???????????????????? | | # # #####%% ??????????????????? | | # % ### # ## # #?????#& ?????????????????? | | # ############# # ##????? ????????????????? | | ###?## ## #?## ## ##???? ????????????????? | | ????# #?# # # #????? ???????????????? | | ????# ### #????? t "??????????????? | | ????# #??????" ??????????????? | | ????## # #???????" "??????????????? | | ?????# ###### ##?????>??????????????????? | | ?????# ##???## ##?####???????????????????? | | ?????# ##?###### ### #???????????????????? | | ?????#### "#???#"#"#"# #????????????????????? | | ????????##"##??###""##"# #????????????????????? | | ?????????###?###"""#"#""# #????????????????????? | | ????????? ??#"#"####""#" #????????????????????? | | ??????????? #"""##"#"###" #####????????????????? | | ????????????###"""#"#"""#"" ##?####??????????? | | ??????????????####""###" # ### #??????????? | +----------------------------------------------------+ Best States ------------- Heat Dissipation 25 Energy Generation 15 Energy Capacity 250 Matter Stores 300 Matter Capacity 300 Sight Range 16 Robot Scan Range 14 Terrain Scan Density 10 Armor Coverage 800 Evasion (%) 55 Recoil Reduction 2 Item Schematics ----------------- None Robot Schematics ------------------ None Fabricated ------------ Nothing Alien Tech Used ----------------- None Achievements -------------- Maybe Next Time I'll Detach My Launcher Challenges ------------ None Game ------ Seed MultitargetingChipSuit Manual? 0 Play Time 00:28:49 Cumulative 59.9 hours Start 2025.03.04 @ 22:34:12 End 2025.03.04 @ 23:01:19 Sessions 1 Manual Loads 0 Difficulty Rogue Special Mode None Game No. 57 Rogue 57 Adventurer 0 Explorer 0 Win Type - Total 2 Types 2/0/0/0/0/0/0/0/0 Lore% 35 Gallery% 41 Achievement% 38 Wizard Run 0 Options --------- Layout 0 ASCII 0 Keyboard 1 Movement Numpad Keybinds 0 Fullscreen 1 Font 24/Smallcaps Map View 76x50 Zoom Use 0% Tactical HUD 1 Map Filters NONE Filters NONE Steam 1 RUN: 4843feaa-a8e9-41f5-84af-d5e2b1877413